[Event "Early-Titled-Tuesday-Blitz-February-13-2024"]
[Site "Chess.com"]
[Date "2024.02.13"]
[Round "10"]
[White "Jospem"]
[Black "K_A_S_T_O_R"]
[Result "1-0"]
[WhiteElo "3042"]
[BlackElo "2870"]
[TimeControl "180+1"]
[EndTime "9:59:54 PST"]
[Termination "Jospem won by checkmate"]

1. e4 {[%clk 0:03:00.9]} 1... c5 {[%clk 0:02:57]} 2. Nf3 {[%clk 0:03:01.5]} 2...
d6 {[%clk 0:02:57.1]} 3. c3 {[%clk 0:03:02.3]} 3... Nf6 {[%clk 0:02:55.9]} 4. h3
{[%clk 0:03:03]} 4... g6 {[%clk 0:02:53.8]} 5. Bd3 {[%clk 0:03:03.6]} 5... Bg7
{[%clk 0:02:52.2]} 6. Bc2 {[%clk 0:03:04.3]} 6... e5 {[%clk 0:02:51.8]} 7. O-O
{[%clk 0:03:04.7]} 7... O-O {[%clk 0:02:51.6]} 8. d3 {[%clk 0:03:05.6]} 8... h6
{[%clk 0:02:50.5]} 9. Na3 {[%clk 0:03:04.6]} 9... Nc6 {[%clk 0:02:50]} 10. Nc4
{[%clk 0:03:05.1]} 10... Be6 {[%clk 0:02:47.6]} 11. a4 {[%clk 0:03:05.3]} 11...
Qc7 {[%clk 0:02:44.3]} 12. Re1 {[%clk 0:03:05]} 12... Rfe8 {[%clk 0:02:43.9]}
13. Ne3 {[%clk 0:02:49.3]} 13... d5 {[%clk 0:02:41.7]} 14. c4 {[%clk 0:02:47.9]}
14... dxe4 {[%clk 0:02:35]} 15. dxe4 {[%clk 0:02:48.8]} 15... Nd4 {[%clk
0:02:33.2]} 16. Bd3 {[%clk 0:02:44.8]} 16... Rad8 {[%clk 0:02:28.6]} 17. Nd5
{[%clk 0:02:45.2]} 17... Nxd5 {[%clk 0:02:28.2]} 18. cxd5 {[%clk 0:02:44.4]}
18... Bd7 {[%clk 0:02:26.2]} 19. Nxd4 {[%clk 0:02:42.9]} 19... exd4 {[%clk
0:02:16.1]} 20. Qf3 {[%clk 0:02:42.6]} 20... g5 {[%clk 0:01:50.3]} 21. b3 {[%clk
0:02:35.2]} 21... f5 {[%clk 0:01:36.4]} 22. Bd2 {[%clk 0:02:28.6]} 22... f4
{[%clk 0:01:33.3]} 23. Rac1 {[%clk 0:02:22.5]} 23... Qd6 {[%clk 0:01:32.6]} 24.
a5 {[%clk 0:02:06.2]} 24... Be5 {[%clk 0:01:30]} 25. Be2 {[%clk 0:01:54.6]}
25... Rc8 {[%clk 0:01:18.6]} 26. b4 {[%clk 0:01:51]} 26... cxb4 {[%clk
0:01:15.9]} 27. Rb1 {[%clk 0:01:50]} 27... Rc3 {[%clk 0:01:15.5]} 28. Bxc3
{[%clk 0:01:48.7]} 28... dxc3 {[%clk 0:01:16]} 29. Qd3 {[%clk 0:01:43.9]} 29...
Rc8 {[%clk 0:01:15.3]} 30. Bd1 {[%clk 0:01:38.7]} 30... Kg7 {[%clk 0:01:10.9]}
31. Qc2 {[%clk 0:01:33.2]} 31... Rc4 {[%clk 0:01:03.9]} 32. Qb3 {[%clk
0:01:33.5]} 32... Rd4 {[%clk 0:01:04]} 33. Bg4 {[%clk 0:01:29.4]} 33... Bb5
{[%clk 0:01:03.4]} 34. Be2 {[%clk 0:01:26.2]} 34... Be8 {[%clk 0:00:56.9]} 35.
Rbd1 {[%clk 0:01:23.3]} 35... Rxd1 {[%clk 0:00:55.3]} 36. Rxd1 {[%clk
0:01:24.2]} 36... Qc5 {[%clk 0:00:55]} 37. d6 {[%clk 0:01:22.5]} 37... Bf7
{[%clk 0:00:54.8]} 38. Qa4 {[%clk 0:01:10.6]} 38... c2 {[%clk 0:00:53.1]} 39. d7
{[%clk 0:01:08.4]} 39... Bf6 {[%clk 0:00:47.8]} 40. Rc1 {[%clk 0:00:42.1]} 40...
b3 {[%clk 0:00:47.7]} 41. e5 {[%clk 0:00:31.3]} 41... Qxe5 {[%clk 0:00:43.3]}
42. Bc4 {[%clk 0:00:26.9]} 42... b2 {[%clk 0:00:39.3]} 43. Qxc2 {[%clk 0:00:27]}
43... bxc1=Q+ {[%clk 0:00:38.6]} 44. Qxc1 {[%clk 0:00:27.9]} 44... Qc5 {[%clk
0:00:34.9]} 45. d8=Q {[%clk 0:00:19.7]} 45... Bxd8 {[%clk 0:00:34.6]} 46. Qb2+
{[%clk 0:00:19]} 46... Bf6 {[%clk 0:00:34.3]} 47. Qxb7 {[%clk 0:00:19.9]} 47...
Qxc4 {[%clk 0:00:34.6]} 48. Qxa7 {[%clk 0:00:20.6]} 48... f3 {[%clk 0:00:32.9]}
49. gxf3 {[%clk 0:00:20.7]} 49... Qc1+ {[%clk 0:00:32.9]} 50. Kg2 {[%clk
0:00:20.9]} 50... Qf4 {[%clk 0:00:32.5]} 51. a6 {[%clk 0:00:20.9]} 51... Be5
{[%clk 0:00:31.7]} 52. Qb7 {[%clk 0:00:21.6]} 52... Kg6 {[%clk 0:00:30.9]} 53.
Qc6+ {[%clk 0:00:20.1]} 53... Kh5 {[%clk 0:00:29.8]} 54. a7 {[%clk 0:00:19.2]}
54... Bc4 {[%clk 0:00:23.5]} 55. Qxc4 {[%clk 0:00:15.2]} 55... Qxc4 {[%clk
0:00:24.1]} 56. a8=Q {[%clk 0:00:15.7]} 56... Qf4 {[%clk 0:00:24.3]} 57. Qe8+
{[%clk 0:00:11.7]} 57... Kh4 {[%clk 0:00:24.5]} 58. Qc6 {[%clk 0:00:12.5]} 58...
Qh2+ {[%clk 0:00:22.1]} 59. Kf1 {[%clk 0:00:13.1]} 59... Qxh3+ {[%clk
0:00:22.6]} 60. Ke2 {[%clk 0:00:13.8]} 60... Qf5 {[%clk 0:00:23.2]} 61. Qxh6#
{[%clk 0:00:13.4]} 1-0

[Event "Early-Titled-Tuesday-Blitz-February-13-2024"]
[Site "Chess.com"]
[Date "2024.02.13"]
[Round "10"]
[White "Dyadya81"]
[Black "kakarot_001"]
[Result "1-0"]
[WhiteElo "2824"]
[BlackElo "2665"]
[TimeControl "180+1"]
[EndTime "9:59:54 PST"]
[Termination "Dyadya81 won by checkmate"]

1. e4 {[%clk 0:03:00.9]} 1... e5 {[%clk 0:02:55.6]} 2. d4 {[%clk 0:02:57.8]}
2... exd4 {[%clk 0:02:51.9]} 3. Qxd4 {[%clk 0:02:58.7]} 3... Nc6 {[%clk
0:02:51.9]} 4. Qe3 {[%clk 0:02:59.3]} 4... Nf6 {[%clk 0:02:51.5]} 5. Nc3 {[%clk
0:02:59.8]} 5... Bb4 {[%clk 0:02:49.9]} 6. Bd2 {[%clk 0:03:00.4]} 6... O-O
{[%clk 0:02:49.7]} 7. O-O-O {[%clk 0:03:01]} 7... Re8 {[%clk 0:02:49.6]} 8. Bc4
{[%clk 0:03:01]} 8... d6 {[%clk 0:02:38.7]} 9. Nf3 {[%clk 0:03:01.2]} 9... Ng4
{[%clk 0:02:28.4]} 10. Qf4 {[%clk 0:02:55.7]} 10... Qf6 {[%clk 0:02:21.5]} 11.
Qxf6 {[%clk 0:02:48.5]} 11... Nxf6 {[%clk 0:02:22.4]} 12. Nb5 {[%clk 0:02:46.2]}
12... Bxd2+ {[%clk 0:02:15.6]} 13. Rxd2 {[%clk 0:02:42.1]} 13... Nxe4 {[%clk
0:02:11.6]} 14. Re1 {[%clk 0:02:29.1]} 14... Bd7 {[%clk 0:01:43.8]} 15. Rde2
{[%clk 0:02:14.2]} 15... Nf6 {[%clk 0:01:36.8]} 16. Nxc7 {[%clk 0:02:10.7]}
16... Rxe2 {[%clk 0:01:37.3]} 17. Rxe2 {[%clk 0:02:11.3]} 17... Rc8 {[%clk
0:01:37.9]} 18. Nb5 {[%clk 0:02:08.5]} 18... d5 {[%clk 0:01:37.8]} 19. Bb3
{[%clk 0:02:04.5]} 19... Bg4 {[%clk 0:01:19.7]} 20. Nd6 {[%clk 0:01:58.7]} 20...
Bxf3 {[%clk 0:01:18.5]} 21. gxf3 {[%clk 0:01:57.3]} 21... Rb8 {[%clk 0:01:15.2]}
22. c3 {[%clk 0:01:49.8]} 22... Kf8 {[%clk 0:01:13.1]} 23. Ba4 {[%clk
0:01:46.9]} 23... Ne7 {[%clk 0:01:05.6]} 24. Nb5 {[%clk 0:01:38]} 24... a6
{[%clk 0:01:02.9]} 25. Nd4 {[%clk 0:01:38.5]} 25... b5 {[%clk 0:01:02]} 26. Bc2
{[%clk 0:01:38]} 26... Ng6 {[%clk 0:00:57.6]} 27. Rd2 {[%clk 0:01:19.3]} 27...
Nf4 {[%clk 0:00:56.7]} 28. a4 {[%clk 0:01:09.4]} 28... b4 {[%clk 0:00:49.5]} 29.
cxb4 {[%clk 0:01:04.5]} 29... Rxb4 {[%clk 0:00:48.9]} 30. Kb1 {[%clk 0:00:58.2]}
30... g6 {[%clk 0:00:40]} 31. Ka2 {[%clk 0:00:57.5]} 31... Rb6 {[%clk 0:00:37]}
32. Ka3 {[%clk 0:00:56]} 32... a5 {[%clk 0:00:31.3]} 33. Nb5 {[%clk 0:00:53.8]}
33... Ke7 {[%clk 0:00:27.8]} 34. b4 {[%clk 0:00:53.4]} 34... axb4+ {[%clk
0:00:27.7]} 35. Kxb4 {[%clk 0:00:54.3]} 35... Rb8 {[%clk 0:00:24.2]} 36. a5
{[%clk 0:00:53.8]} 36... Ne6 {[%clk 0:00:24.5]} 37. Bd3 {[%clk 0:00:44.9]} 37...
Ne8 {[%clk 0:00:18.9]} 38. Rc2 {[%clk 0:00:37.1]} 38... Nd6 {[%clk 0:00:16.7]}
39. Ka4 {[%clk 0:00:35.2]} 39... Nxb5 {[%clk 0:00:10.5]} 40. Bxb5 {[%clk
0:00:35.3]} 40... Rxb5 {[%clk 0:00:11.1]} 41. Kxb5 {[%clk 0:00:35.6]} 41... Nd4+
{[%clk 0:00:11.6]} 42. Kb6 {[%clk 0:00:36.3]} 42... Nxc2 {[%clk 0:00:11.8]} 43.
a6 {[%clk 0:00:37.1]} 43... d4 {[%clk 0:00:05.6]} 44. a7 {[%clk 0:00:36.9]}
44... d3 {[%clk 0:00:06.3]} 45. a8=Q {[%clk 0:00:36.9]} 45... d2 {[%clk
0:00:02.1]} 46. Qe4+ {[%clk 0:00:35.2]} 46... Kf6 {[%clk 0:00:01.3]} 47. Qxc2
{[%clk 0:00:36.1]} 47... Kg5 {[%clk 0:00:01.2]} 48. Qxd2+ {[%clk 0:00:35.5]}
48... Kh5 {[%clk 0:00:02.1]} 49. Qf4 {[%clk 0:00:35.5]} 49... f5 {[%clk
0:00:03]} 50. h4 {[%clk 0:00:35.2]} 50... h6 {[%clk 0:00:03]} 51. Kc5 {[%clk
0:00:35.6]} 51... g5 {[%clk 0:00:03.5]} 52. Qxf5 {[%clk 0:00:36]} 52... Kxh4
{[%clk 0:00:03.6]} 53. Qg4# {[%clk 0:00:36.6]} 1-0

[Event "Early-Titled-Tuesday-Blitz-February-13-2024"]
[Site "Chess.com"]
[Date "2024.02.13"]
[Round "10"]
[White "ValiantCeleb"]
[Black "AndresDelgado77"]
[Result "1-0"]
[WhiteElo "2217"]
[BlackElo "2341"]
[TimeControl "180+1"]
[EndTime "9:59:55 PST"]
[Termination "ValiantCeleb won by checkmate"]

1. d4 {[%clk 0:02:58.7]} 1... Nf6 {[%clk 0:02:59.7]} 2. Bf4 {[%clk 0:02:58.1]}
2... c5 {[%clk 0:02:59.3]} 3. e3 {[%clk 0:02:57.1]} 3... Qb6 {[%clk 0:02:58.4]}
4. Na3 {[%clk 0:02:52.8]} 4... Qxb2 {[%clk 0:02:54.3]} 5. Nb5 {[%clk 0:02:49.1]}
5... Nd5 {[%clk 0:02:27.7]} 6. a3 {[%clk 0:01:57.3]} 6... Nxf4 {[%clk
0:01:40.7]} 7. exf4 {[%clk 0:01:30.4]} 7... Na6 {[%clk 0:01:39.4]} 8. Bc4 {[%clk
0:01:17.2]} 8... d5 {[%clk 0:01:20.2]} 9. Ra2 {[%clk 0:01:00.7]} 9... Qxa2
{[%clk 0:00:51.4]} 10. Bxa2 {[%clk 0:00:59.6]} 10... c4 {[%clk 0:00:51.8]} 11.
Ne2 {[%clk 0:00:55.6]} 11... Bd7 {[%clk 0:00:51.7]} 12. Nbc3 {[%clk 0:00:54.3]}
12... e6 {[%clk 0:00:52]} 13. f5 {[%clk 0:00:44.6]} 13... Bxa3 {[%clk
0:00:48.1]} 14. fxe6 {[%clk 0:00:43.3]} 14... fxe6 {[%clk 0:00:44.7]} 15. O-O
{[%clk 0:00:35.9]} 15... O-O {[%clk 0:00:43.9]} 16. Nb1 {[%clk 0:00:23.9]} 16...
Bd6 {[%clk 0:00:42.8]} 17. c3 {[%clk 0:00:24.2]} 17... Nc7 {[%clk 0:00:40.2]}
18. Nd2 {[%clk 0:00:22.8]} 18... b5 {[%clk 0:00:37.9]} 19. Nf3 {[%clk
0:00:20.4]} 19... a5 {[%clk 0:00:37.3]} 20. Ne5 {[%clk 0:00:19.2]} 20... Be8
{[%clk 0:00:34.6]} 21. Bb1 {[%clk 0:00:17.6]} 21... b4 {[%clk 0:00:32.6]} 22.
Qc2 {[%clk 0:00:15.3]} 22... g6 {[%clk 0:00:32.8]} 23. g3 {[%clk 0:00:08.9]}
23... Nb5 {[%clk 0:00:28.4]} 24. cxb4 {[%clk 0:00:06.9]} 24... axb4 {[%clk
0:00:26.8]} 25. Qd2 {[%clk 0:00:05.8]} 25... Na3 {[%clk 0:00:14.4]} 26. Qh6
{[%clk 0:00:04.3]} 26... Nxb1 {[%clk 0:00:12.5]} 27. Rxb1 {[%clk 0:00:04.1]}
27... c3 {[%clk 0:00:11.3]} 28. Qc1 {[%clk 0:00:02.8]} 28... Bb5 {[%clk
0:00:07.6]} 29. Nxc3 {[%clk 0:00:02.5]} 29... bxc3 {[%clk 0:00:05]} 30. Rxb5
{[%clk 0:00:02.5]} 30... Rfc8 {[%clk 0:00:05.4]} 31. Rb1 {[%clk 0:00:02.1]}
31... Ra2 {[%clk 0:00:02.9]} 32. Qd1 {[%clk 0:00:01.2]} 32... Rd2 {[%clk
0:00:02.7]} 33. Qc1 {[%clk 0:00:01.4]} 33... Rxd4 {[%clk 0:00:02.7]} 34. Nf3
{[%clk 0:00:01.6]} 34... Rd3 {[%clk 0:00:02.8]} 35. Ne1 {[%clk 0:00:01.9]} 35...
Rd2 {[%clk 0:00:02.8]} 36. Rb3 {[%clk 0:00:01.9]} 36... Bc5 {[%clk 0:00:02.6]}
37. Rxc3 {[%clk 0:00:01.5]} 37... Rxf2 {[%clk 0:00:02.6]} 38. Kh1 {[%clk
0:00:01.5]} 38... Rf1+ {[%clk 0:00:01.6]} 39. Kg2 {[%clk 0:00:02.2]} 39... Rxe1
{[%clk 0:00:02.1]} 40. Qxe1 {[%clk 0:00:01.7]} 40... Kg7 {[%clk 0:00:02.2]} 41.
Qc1 {[%clk 0:00:01.6]} 41... Rb8 {[%clk 0:00:01.1]} 42. Rxc5 {[%clk 0:00:02.1]}
42... Rb2+ {[%clk 0:00:02]} 43. Qxb2+ {[%clk 0:00:02.5]} 43... Kh6 {[%clk
0:00:02.4]} 44. Qc3 {[%clk 0:00:02.7]} 44... Kh5 {[%clk 0:00:03.1]} 45. Qd2
{[%clk 0:00:02.9]} 45... g5 {[%clk 0:00:03.8]} 46. Qe2+ {[%clk 0:00:03]} 46...
g4 {[%clk 0:00:04.4]} 47. Qxe6 {[%clk 0:00:03.1]} 47... Kg5 {[%clk 0:00:05.3]}
48. Rxd5# {[%clk 0:00:02.9]} 1-0

[Event "Early-Titled-Tuesday-Blitz-February-13-2024"]
[Site "Chess.com"]
[Date "2024.02.13"]
[Round "10"]
[White "ChessLover0108"]
[Black "scarabee43"]
[Result "1-0"]
[WhiteElo "2993"]
[BlackElo "2869"]
[TimeControl "180+1"]
[EndTime "10:00:01 PST"]
[Termination "ChessLover0108 won by checkmate"]

1. d4 {[%clk 0:02:52.6]} 1... Nf6 {[%clk 0:02:59.6]} 2. c4 {[%clk 0:02:46.7]}
2... e6 {[%clk 0:02:59.9]} 3. Nf3 {[%clk 0:02:46.9]} 3... d5 {[%clk 0:03:00]} 4.
Nc3 {[%clk 0:02:45.7]} 4... Be7 {[%clk 0:02:59.3]} 5. Bg5 {[%clk 0:02:45.3]}
5... h6 {[%clk 0:02:59.6]} 6. Bh4 {[%clk 0:02:44.4]} 6... b6 {[%clk 0:02:59.8]}
7. e3 {[%clk 0:02:43.9]} 7... Bb7 {[%clk 0:02:56.6]} 8. Rc1 {[%clk 0:02:39.8]}
8... O-O {[%clk 0:02:50.8]} 9. Qc2 {[%clk 0:02:17.5]} 9... Nbd7 {[%clk
0:02:47.5]} 10. cxd5 {[%clk 0:02:05.8]} 10... exd5 {[%clk 0:02:32]} 11. Be2
{[%clk 0:01:57.7]} 11... Ne4 {[%clk 0:02:18.5]} 12. Bg3 {[%clk 0:01:15.7]} 12...
Nxg3 {[%clk 0:02:13.6]} 13. hxg3 {[%clk 0:01:16.6]} 13... c5 {[%clk 0:02:00.5]}
14. dxc5 {[%clk 0:01:13.9]} 14... bxc5 {[%clk 0:02:00.9]} 15. O-O {[%clk
0:01:14.5]} 15... Nb6 {[%clk 0:02:01.2]} 16. Rfd1 {[%clk 0:01:14.6]} 16... Rc8
{[%clk 0:01:49]} 17. b3 {[%clk 0:00:51.2]} 17... Qc7 {[%clk 0:01:40.8]} 18. e4
{[%clk 0:00:47.8]} 18... d4 {[%clk 0:01:30.2]} 19. Nb5 {[%clk 0:00:47.6]} 19...
Qb8 {[%clk 0:01:30.4]} 20. e5 {[%clk 0:00:45.9]} 20... a6 {[%clk 0:01:01.7]} 21.
Na3 {[%clk 0:00:37.3]} 21... Nd5 {[%clk 0:01:01.7]} 22. Nc4 {[%clk 0:00:33.8]}
22... Nc3 {[%clk 0:01:00.9]} 23. Re1 {[%clk 0:00:32.4]} 23... Be4 {[%clk
0:01:00.1]} 24. Bd3 {[%clk 0:00:23.8]} 24... Bd5 {[%clk 0:00:49.1]} 25. Bh7+
{[%clk 0:00:20.7]} 25... Kh8 {[%clk 0:00:48.7]} 26. Bf5 {[%clk 0:00:21.6]} 26...
Rcd8 {[%clk 0:00:45.6]} 27. e6 {[%clk 0:00:21.3]} 27... fxe6 {[%clk 0:00:44.9]}
28. Bxe6 {[%clk 0:00:22.2]} 28... Bxf3 {[%clk 0:00:24.7]} 29. gxf3 {[%clk
0:00:23.1]} 29... Bf6 {[%clk 0:00:24.4]} 30. Qg6 {[%clk 0:00:21.4]} 30... Bg5
{[%clk 0:00:18.7]} 31. Ne5 {[%clk 0:00:11.9]} 31... Bxc1 {[%clk 0:00:15.7]} 32.
Bf5 {[%clk 0:00:07.9]} 32... Rxf5 {[%clk 0:00:15.3]} 33. Qxf5 {[%clk 0:00:08.8]}
33... Bd2 {[%clk 0:00:13.6]} 34. Ng6+ {[%clk 0:00:06.4]} 34... Kg8 {[%clk
0:00:12.6]} 35. Re7 {[%clk 0:00:07.3]} 35... Rf8 {[%clk 0:00:08.4]} 36. Qe6+
{[%clk 0:00:03.5]} 36... Kh7 {[%clk 0:00:08.3]} 37. Nxf8+ {[%clk 0:00:01.6]}
37... Qxf8 {[%clk 0:00:08.6]} 38. Rf7 {[%clk 0:00:02.5]} 38... Qd8 {[%clk
0:00:04.8]} 39. Qf5+ {[%clk 0:00:02.1]} 39... Kg8 {[%clk 0:00:05.3]} 40. Rd7
{[%clk 0:00:02.8]} 40... Qf6 {[%clk 0:00:05.2]} 41. Qxc5 {[%clk 0:00:02.2]}
41... Qxf3 {[%clk 0:00:04.8]} 42. Qc7 {[%clk 0:00:01.4]} 42... Ne2+ {[%clk
0:00:04.2]} 43. Kf1 {[%clk 0:00:02.1]} 43... Kh8 {[%clk 0:00:03]} 44. Qc8+
{[%clk 0:00:01.5]} 44... Kh7 {[%clk 0:00:02.9]} 45. Qc7 {[%clk 0:00:02.4]} 45...
Kh8 {[%clk 0:00:02]} 46. Rd8+ {[%clk 0:00:03]} 46... Kh7 {[%clk 0:00:01.9]} 47.
Rd7 {[%clk 0:00:03.7]} 47... Nxg3+ {[%clk 0:00:01]} 48. Qxg3 {[%clk 0:00:03.2]}
48... Qd1+ {[%clk 0:00:01.7]} 49. Kg2 {[%clk 0:00:03.5]} 49... Bg5 {[%clk
0:00:02.4]} 50. Qf3 {[%clk 0:00:03.3]} 50... Qd2 {[%clk 0:00:01.9]} 51. Qf5+
{[%clk 0:00:02.1]} 51... Kh8 {[%clk 0:00:02.4]} 52. Qf8+ {[%clk 0:00:02.3]}
52... Kh7 {[%clk 0:00:02.7]} 53. Qxg7# {[%clk 0:00:03.2]} 1-0

[Event "Early-Titled-Tuesday-Blitz-February-13-2024"]
[Site "Chess.com"]
[Date "2024.02.13"]
[Round "10"]
[White "Sychev_Klementy"]
[Black "GM_dmitrij"]
[Result "0-1"]
[WhiteElo "2916"]
[BlackElo "3056"]
[TimeControl "180+1"]
[EndTime "10:00:02 PST"]
[Termination "GM_dmitrij won on time"]

1. e4 {[%clk 0:02:59.2]} 1... c6 {[%clk 0:02:59.5]} 2. c4 {[%clk 0:02:58.7]}
2... d5 {[%clk 0:03:00.4]} 3. cxd5 {[%clk 0:02:59.6]} 3... cxd5 {[%clk
0:03:01.3]} 4. exd5 {[%clk 0:03:00]} 4... Nf6 {[%clk 0:03:01]} 5. Qa4+ {[%clk
0:03:00.5]} 5... Nbd7 {[%clk 0:02:57.6]} 6. Nc3 {[%clk 0:03:00.5]} 6... g6
{[%clk 0:02:56.2]} 7. Bc4 {[%clk 0:03:00]} 7... Bg7 {[%clk 0:02:53.7]} 8. Nf3
{[%clk 0:02:57.1]} 8... a6 {[%clk 0:02:53.9]} 9. O-O {[%clk 0:02:37]} 9... Rb8
{[%clk 0:02:49.9]} 10. Bb3 {[%clk 0:02:35.2]} 10... O-O {[%clk 0:02:44.7]} 11.
Qf4 {[%clk 0:02:33.1]} 11... b5 {[%clk 0:02:41.1]} 12. Nd4 {[%clk 0:02:32.8]}
12... Nh5 {[%clk 0:02:22.6]} 13. Qe3 {[%clk 0:02:24.5]} 13... Bb7 {[%clk
0:02:13.2]} 14. Nc6 {[%clk 0:02:01.9]} 14... Bxc6 {[%clk 0:02:12.6]} 15. dxc6
{[%clk 0:02:02.8]} 15... Ne5 {[%clk 0:02:13.1]} 16. Qe4 {[%clk 0:01:53]} 16...
Qc8 {[%clk 0:01:54]} 17. d4 {[%clk 0:01:30.4]} 17... Nxc6 {[%clk 0:01:53.7]} 18.
Be3 {[%clk 0:01:31.1]} 18... Nf6 {[%clk 0:01:52]} 19. Qh4 {[%clk 0:01:13.6]}
19... Qg4 {[%clk 0:01:50.3]} 20. Qxg4 {[%clk 0:01:00.1]} 20... Nxg4 {[%clk
0:01:51.2]} 21. h3 {[%clk 0:01:00.7]} 21... Nh6 {[%clk 0:01:38.6]} 22. d5 {[%clk
0:00:56.5]} 22... Nd4 {[%clk 0:01:38.5]} 23. g4 {[%clk 0:00:53.2]} 23... b4
{[%clk 0:01:09.3]} 24. Na4 {[%clk 0:00:53.1]} 24... Nxb3 {[%clk 0:01:02.4]} 25.
axb3 {[%clk 0:00:52.1]} 25... Rfd8 {[%clk 0:01:03.3]} 26. Rfd1 {[%clk
0:00:47.4]} 26... f5 {[%clk 0:00:58]} 27. g5 {[%clk 0:00:31.2]} 27... Nf7 {[%clk
0:00:57.1]} 28. Nc5 {[%clk 0:00:31]} 28... Rb5 {[%clk 0:00:50.9]} 29. Ne6 {[%clk
0:00:27.5]} 29... Rdxd5 {[%clk 0:00:48.9]} 30. Rxd5 {[%clk 0:00:27.5]} 30...
Rxd5 {[%clk 0:00:49.8]} 31. Rxa6 {[%clk 0:00:27.9]} 31... Nd6 {[%clk 0:00:47.5]}
32. Ra8+ {[%clk 0:00:22.1]} 32... Kf7 {[%clk 0:00:47.8]} 33. Nd8+ {[%clk
0:00:21.7]} 33... Ke8 {[%clk 0:00:48.4]} 34. Ne6+ {[%clk 0:00:10.2]} 34... Kf7
{[%clk 0:00:48.8]} 35. Nd8+ {[%clk 0:00:10.3]} 35... Ke8 {[%clk 0:00:48.9]} 36.
Nc6+ {[%clk 0:00:09.9]} 36... Kd7 {[%clk 0:00:48.7]} 37. Nxb4 {[%clk 0:00:10]}
37... Rb5 {[%clk 0:00:45.6]} 38. Ra7+ {[%clk 0:00:08.9]} 38... Nb7 {[%clk
0:00:30.8]} 39. Nd3 {[%clk 0:00:08.2]} 39... Kd6 {[%clk 0:00:26.8]} 40. b4
{[%clk 0:00:07.5]} 40... e5 {[%clk 0:00:10.8]} 41. Nc5 {[%clk 0:00:07.2]} 41...
Kc6 {[%clk 0:00:11.5]} 42. Ra6+ {[%clk 0:00:07.1]} 42... Kd5 {[%clk 0:00:11.6]}
43. Ne6 {[%clk 0:00:06.2]} 43... Rxb4 {[%clk 0:00:08.8]} 44. Nxg7 {[%clk
0:00:06.4]} 44... Rxb2 {[%clk 0:00:09.1]} 45. Ne8 {[%clk 0:00:04.9]} 45... f4
{[%clk 0:00:07]} 46. Nf6+ {[%clk 0:00:05.2]} 46... Kc4 {[%clk 0:00:07.7]} 47.
Rc6+ {[%clk 0:00:05.3]} 47... Kd3 {[%clk 0:00:07.4]} 48. Rd6+ {[%clk 0:00:04.3]}
48... Ke2 {[%clk 0:00:07.8]} 49. Rd7 {[%clk 0:00:03.8]} 49... fxe3 {[%clk
0:00:07.2]} 50. fxe3 {[%clk 0:00:04.3]} 50... Nc5 {[%clk 0:00:05.1]} 51. Rxh7
{[%clk 0:00:04.1]} 51... Kxe3 {[%clk 0:00:04.9]} 52. Re7 {[%clk 0:00:04.1]}
52... Nd3 {[%clk 0:00:05.2]} 53. h4 {[%clk 0:00:03]} 53... Kf3 {[%clk
0:00:05.7]} 54. Rf7 {[%clk 0:00:01.9]} 54... Nf4 {[%clk 0:00:05.7]} 0-1

[Event "Early-Titled-Tuesday-Blitz-February-13-2024"]
[Site "Chess.com"]
[Date "2024.02.13"]
[Round "10"]
[White "dealshark"]
[Black "db-banana"]
[Result "0-1"]
[WhiteElo "2330"]
[BlackElo "2489"]
[TimeControl "180+1"]
[EndTime "10:00:02 PST"]
[Termination "db-banana won by checkmate"]

1. Nf3 {[%clk 0:03:00.9]} 1... Nf6 {[%clk 0:02:54.7]} 2. c4 {[%clk 0:02:59.6]}
2... e6 {[%clk 0:02:53.1]} 3. Nc3 {[%clk 0:02:55.7]} 3... c5 {[%clk 0:02:52]} 4.
g3 {[%clk 0:02:54.7]} 4... Nc6 {[%clk 0:02:50.6]} 5. Bg2 {[%clk 0:02:54.7]} 5...
d5 {[%clk 0:02:50.9]} 6. cxd5 {[%clk 0:02:53.6]} 6... exd5 {[%clk 0:02:51.8]} 7.
d4 {[%clk 0:02:52.6]} 7... Be7 {[%clk 0:02:51.8]} 8. O-O {[%clk 0:02:52]} 8...
O-O {[%clk 0:02:52]} 9. Bg5 {[%clk 0:02:51.1]} 9... Be6 {[%clk 0:02:17.5]} 10.
Rc1 {[%clk 0:02:42.3]} 10... Rc8 {[%clk 0:01:58.6]} 11. dxc5 {[%clk 0:02:21.1]}
11... Bxc5 {[%clk 0:01:45.1]} 12. e3 {[%clk 0:02:21.1]} 12... Be7 {[%clk
0:01:42.4]} 13. Ne2 {[%clk 0:02:14.5]} 13... h6 {[%clk 0:01:40.8]} 14. Bxf6
{[%clk 0:02:01.4]} 14... Bxf6 {[%clk 0:01:41.7]} 15. Ned4 {[%clk 0:02:01.6]}
15... Bg4 {[%clk 0:01:41.4]} 16. Qd2 {[%clk 0:01:56.9]} 16... Qd7 {[%clk
0:01:17.1]} 17. a3 {[%clk 0:01:26.7]} 17... b6 {[%clk 0:01:13.6]} 18. b4 {[%clk
0:01:23.5]} 18... a6 {[%clk 0:01:01.3]} 19. Nxc6 {[%clk 0:01:17.1]} 19... Rxc6
{[%clk 0:01:00.6]} 20. Rxc6 {[%clk 0:01:17.2]} 20... Qxc6 {[%clk 0:01:00.7]} 21.
Nd4 {[%clk 0:01:16.7]} 21... Qd7 {[%clk 0:00:50.8]} 22. Rc1 {[%clk 0:01:15.5]}
22... Bh3 {[%clk 0:00:42]} 23. Bxh3 {[%clk 0:01:06.8]} 23... Qxh3 {[%clk
0:00:42.9]} 24. Rc6 {[%clk 0:00:58.3]} 24... Rc8 {[%clk 0:00:37.6]} 25. Qc2
{[%clk 0:00:45.6]} 25... Re8 {[%clk 0:00:32.2]} 26. Ne2 {[%clk 0:00:38.9]} 26...
d4 {[%clk 0:00:24.6]} 27. Nf4 {[%clk 0:00:28.5]} 27... Qg4 {[%clk 0:00:21]} 28.
Rxf6 {[%clk 0:00:15.6]} 28... gxf6 {[%clk 0:00:16.3]} 29. exd4 {[%clk
0:00:15.9]} 29... Qf3 {[%clk 0:00:13.8]} 30. Qc1 {[%clk 0:00:11.4]} 30... Qe4
{[%clk 0:00:10]} 31. d5 {[%clk 0:00:08.8]} 31... Qe1+ {[%clk 0:00:07.3]} 32.
Qxe1 {[%clk 0:00:09]} 32... Rxe1+ {[%clk 0:00:08.2]} 33. Kg2 {[%clk 0:00:09.8]}
33... Kf8 {[%clk 0:00:07.2]} 34. Nh5 {[%clk 0:00:06]} 34... Ke7 {[%clk
0:00:06.5]} 35. Kf3 {[%clk 0:00:06]} 35... Ra1 {[%clk 0:00:04.2]} 36. d6+ {[%clk
0:00:05.9]} 36... Kxd6 {[%clk 0:00:03.9]} 37. Nxf6 {[%clk 0:00:06.8]} 37...
Rxa3+ {[%clk 0:00:04.4]} 38. Kf4 {[%clk 0:00:07.3]} 38... Rb3 {[%clk 0:00:04.7]}
39. Ne4+ {[%clk 0:00:03.4]} 39... Ke7 {[%clk 0:00:05.3]} 40. Kf5 {[%clk
0:00:03.5]} 40... Rxb4 {[%clk 0:00:05.7]} 41. f4 {[%clk 0:00:03.9]} 41... Rb5+
{[%clk 0:00:06.2]} 42. Kg4 {[%clk 0:00:03.5]} 42... f5+ {[%clk 0:00:06.8]} 43.
Kf3 {[%clk 0:00:02.8]} 43... fxe4+ {[%clk 0:00:07.7]} 44. Kxe4 {[%clk
0:00:03.7]} 44... Kf6 {[%clk 0:00:08.3]} 45. g4 {[%clk 0:00:03.9]} 45... Rc5
{[%clk 0:00:08.6]} 46. h3 {[%clk 0:00:04]} 46... a5 {[%clk 0:00:09.3]} 47. g5+
{[%clk 0:00:04.1]} 47... hxg5 {[%clk 0:00:09.1]} 48. fxg5+ {[%clk 0:00:04.6]}
48... Kxg5 {[%clk 0:00:10]} 49. h4+ {[%clk 0:00:05.3]} 49... Kxh4 {[%clk
0:00:10.6]} 50. Kd3 {[%clk 0:00:06.2]} 50... a4 {[%clk 0:00:11]} 51. Kd4 {[%clk
0:00:07.1]} 51... a3 {[%clk 0:00:11.9]} 52. Kd3 {[%clk 0:00:08]} 52... a2 {[%clk
0:00:12.8]} 53. Kd4 {[%clk 0:00:08.9]} 53... a1=Q+ {[%clk 0:00:13.5]} 54. Kd3
{[%clk 0:00:09.8]} 54... Qc3+ {[%clk 0:00:12.9]} 55. Ke4 {[%clk 0:00:10.3]}
55... Qb4+ {[%clk 0:00:13]} 56. Kf3 {[%clk 0:00:10.5]} 56... Rc3+ {[%clk
0:00:13.4]} 57. Ke2 {[%clk 0:00:11.1]} 57... Qb2+ {[%clk 0:00:13.7]} 58. Kd1
{[%clk 0:00:12]} 58... Rc1# {[%clk 0:00:13.9]} 0-1